bitfinex/quotes_BTCUSD_20230905
["timestamp","ask_amount","ask_price","bid_price","bid_amount"]
[1693883851362,0.78875387,25617.0,25614.0,0.07056]
[1693883851570,0.94565387,25617.0,25614.0,0.346907]
[1693883851785,0.94565387,25617.0,25615.0,0.07698]
[1693883851786,0.1569,25617.0,25615.0,0.07698]
[1693883851996,0.1569,25617.0,25615.0,0.356555]
[1693883852208,0.1569,25617.0,25615.0,0.356315]
[1693883852416,0.1569,25617.0,25616.0,0.06558]
[1693883852616,0.1569,25617.0,25615.0,0.352175]
[1693883852869,0.1569,25617.0,25615.0,0.353555]
[1693883853085,0.1569,25617.0,25616.0,0.07014]
[1693883853293,0.02647969,25618.0,25616.0,0.51287895]
[1693883853515,0.02647969,25618.0,25616.0,0.51749895]
[1693883853720,0.02,25618.0,25616.0,0.52007895]
[1693883853931,0.02,25618.0,25616.0,0.51755895]
[1693883854132,0.02,25618.0,25616.0,0.51389895]
[1693883854343,0.02,25618.0,25616.0,0.51335895]
[1693883854555,0.02,25618.0,25616.0,0.51329895]
[1693883854757,0.02,25618.0,25616.0,0.91043197]
[1693883854965,0.02,25618.0,25616.0,0.63140597]
[1693883855174,0.02,25618.0,25616.0,0.63086597]
[1693883855379,0.02,25618.0,25616.0,0.51515895]
[1693883855595,0.02,25618.0,25616.0,0.51581895]
[1693883855781,0.02,25618.0,25617.0,0.25960855]
[1693883855988,0.02,25618.0,25617.0,0.53718455]
[1693883856196,0.02,25618.0,25617.0,0.93874251]
[1693883856407,0.02,25618.0,25617.0,0.94672251]
[1693883856616,0.02,25618.0,25617.0,0.93460251]
[1693883856818,0.02,25618.0,25617.0,0.93274251]
[1693883857020,0.02,25618.0,25617.0,0.93244251]
[1693883857228,0.02,25618.0,25617.0,0.93160251]
[1693883857440,0.02,25618.0,25617.0,0.92842251]
[1693883857667,0.02,25618.0,25617.0,0.405838]
[1693883857875,0.02,25618.0,25617.0,0.407578]
[1693883858174,0.02,25618.0,25617.0,0.685814]
[1693883858426,0.02,25618.0,25617.0,0.687074]
[1693883858609,0.02,25619.0,25617.0,0.74883259]
[1693883858825,0.18787234,25620.0,25618.0,0.66744622]
[1693883859027,0.18787234,25620.0,25618.0,0.47562122]
[1693883859357,0.18787234,25620.0,25618.0,0.19308122]
[1693883859564,0.18787234,25620.0,25618.0,0.19218122]
[1693883859746,0.18787234,25620.0,25618.0,0.19176122]
[1693883859917,0.18787234,25620.0,25619.0,0.07384849]
[1693883860324,0.18787234,25620.0,25617.0,0.27347463]
[1693883860325,0.18787234,25620.0,25617.0,0.62706663]
[1693883860502,0.18787234,25620.0,25617.0,0.62628663]
[1693883860700,0.18787234,25620.0,25617.0,0.62850663]
[1693883860922,0.865886,25622.0,25618.0,0.46176527]
[1693883860923,0.1053,25622.0,25618.0,0.46176527]
[1693883861132,0.02,25623.0,25620.0,0.358521]
[1693883861337,0.14008555,25622.0,25621.0,0.08064031]
[1693883861539,0.15705062,25619.0,25618.0,0.07188]
[1693883861738,0.15705062,25619.0,25617.0,0.28881604]
[1693883861963,1.04559,25622.0,25618.0,0.362934]
[1693883862165,0.19094181,25621.0,25618.0,0.72347285]
[1693883862367,0.19094181,25621.0,25619.0,0.86636179]
[1693883862519,0.19094181,25621.0,25619.0,1.13671579]
[1693883862742,0.19094181,25621.0,25620.0,0.08604]
[1693883862942,0.245,25622.0,25620.0,0.78586279]
[1693883863123,0.34846041,25623.0,25620.0,0.80218279]
[1693883863322,0.34846041,25623.0,25621.0,0.12044116]
[1693883863529,0.19316041,25623.0,25621.0,0.49007116]
[1693883863730,0.19316041,25623.0,25622.0,0.081]
[1693883863964,0.19316041,25623.0,25622.0,0.0891]
[1693883864197,0.19316041,25623.0,25622.0,0.09858]
[1693883864397,0.19316041,25623.0,25622.0,0.46895527]
[1693883864680,0.19316041,25623.0,25622.0,0.19365327]
[1693883864929,0.19316041,25623.0,25622.0,0.18891327]
[1693883865144,0.19316041,25623.0,25622.0,0.10593327]
[1693883865360,0.13773297,25621.0,25619.0,0.355966]
[1693883865577,0.1620696,25621.0,25619.0,0.340306]
[1693883865789,0.13773297,25621.0,25619.0,0.346906]
[1693883865967,0.13773297,25621.0,25619.0,0.347206]
[1693883866278,0.13773297,25621.0,25619.0,0.347926]
[1693883866498,0.13773297,25621.0,25619.0,0.06644866]
[1693883866910,0.13773297,25621.0,25619.0,0.61291166]
[1693883867506,0.11356127,25626.0,25620.0,1.51068527]
[1693883867674,0.11356127,25626.0,25625.0,0.0853]
[1693883867893,0.13356127,25626.0,25625.0,0.87678571]
[1693883868239,0.02,25626.0,25625.0,0.7221276]
[1693883868819,0.04995194,25626.0,25625.0,0.7221276]
[1693883869407,0.02995194,25626.0,25625.0,0.7221276]
[1693883870035,0.02995194,25626.0,25625.0,1.38194287]
[1693883870244,0.02995194,25626.0,25625.0,1.67793287]
[1693883870448,0.02995194,25626.0,25625.0,1.67523287]
[1693883870655,0.11233635,25629.0,25625.0,1.67307287]
[1693883870858,0.10988196,25627.0,25626.0,0.67002935]
[1693883871077,0.10988196,25627.0,25626.0,1.21634935]
[1693883871282,0.10988196,25627.0,25626.0,1.1515384]
[1693883872161,0.10988196,25627.0,25626.0,0.76489313]
[1693883872483,0.10988196,25627.0,25626.0,0.13327313]
[1693883873937,0.10988196,25627.0,25626.0,0.40643313]
[1693883874140,0.2529,25628.0,25626.0,0.67959313]
[1693883874317,0.12717395,25629.0,25627.0,0.14359076]
[1693883874528,0.12717395,25629.0,25628.0,0.273138]
[1693883874845,0.12717395,25629.0,25627.0,0.68987876]
[1693883875430,0.1107483,25628.0,25627.0,0.68987876]
[1693883876262,0.1395653,25628.0,25627.0,0.68987876]
[1693883876468,0.1395653,25628.0,25627.0,0.77517876]
[1693883876469,0.028817,25628.0,25627.0,0.77517876]
[1693883876903,0.11723208,25629.0,25627.0,0.77517876]
[1693883877099,0.11723208,25629.0,25628.0,0.0853]
[1693883877335,0.11723208,25629.0,25628.0,0.20489181]
[1693883878490,0.4172,25630.0,25628.0,1.02430581]
[1693883878698,0.13256664,25631.0,25629.0,0.0853]
[1693883878900,0.0933856,25634.0,25630.0,0.96703155]
[1693883878901,0.04,25634.0,25630.0,0.96703155]
[1693883879117,0.13834086,25632.0,25631.0,0.62660338]
[1693883879323,0.13834086,25632.0,25631.0,1.01814627]
[1693883879451,0.13834086,25632.0,25631.0,1.16173703]
[1693883879870,0.98453,25634.0,25631.0,0.14359076]
[1693883880067,1.764773,25634.0,25631.0,0.14359076]
[1693883880867,0.780247,25633.0,25631.0,0.14359076]
[1693883881336,1.560494,25633.0,25631.0,0.14359076]
[1693883881548,2.340741,25633.0,25629.0,0.3]
[1693883881680,0.11363283,25632.0,25628.0,0.658438]
[1693883881882,0.780311,25631.0,25628.0,0.658438]
[1693883882583,1.560622,25631.0,25628.0,0.3]
[1693883882791,1.560622,25631.0,25629.0,0.0951587]
[1693883883019,1.718522,25631.0,25629.0,0.3951587]
[1693883883998,0.14214097,25630.0,25629.0,0.0951587]
[1693883884199,0.92247597,25630.0,25629.0,0.0951587]
[1693883884617,0.92247597,25630.0,25627.0,0.358443]
[1693883885634,1.67921293,25630.0,25627.0,0.358443]
[1693883885839,0.89887793,25630.0,25627.0,0.358443]
[1693883886434,0.89887793,25630.0,25627.0,0.631592]
[1693883886667,0.1087137,25629.0,25627.0,0.631592]
[1693883886880,0.1087137,25629.0,25628.0,0.2555406]
[1693883887061,0.1087137,25629.0,25628.0,0.8010966]
[1693883887272,0.1087137,25629.0,25628.0,1.49587987]
[1693883887483,0.1087137,25629.0,25628.0,1.49251987]
[1693883887630,0.1087137,25629.0,25628.0,1.48615987]
[1693883887840,0.1087137,25629.0,25628.0,1.48333987]
[1693883888045,0.1087137,25629.0,25628.0,1.48201987]
[1693883888251,0.1087137,25629.0,25628.0,1.48183987]
[1693883888447,0.1087137,25629.0,25628.0,0.4584786]
[1693883888649,0.1087137,25629.0,25628.0,0.3731786]
[1693883888850,0.1087137,25629.0,25628.0,0.9194546]
[1693883889282,0.1087137,25629.0,25628.0,1.47881987]
[1693883889484,0.1579,25631.0,25628.0,1.48121987]
[1693883889710,0.1579,25631.0,25629.0,0.24844197]
[1693883889906,0.11468962,25630.0,25629.0,0.59104097]
[1693883890230,0.11468962,25630.0,25629.0,0.52156097]
[1693883890955,0.11468962,25630.0,25629.0,0.86182297]
[1693883891187,0.14356304,25630.0,25629.0,0.79468297]
[1693883891833,0.14356304,25630.0,25629.0,0.86026297]
[1693883892022,0.14356304,25630.0,25629.0,0.79468297]
[1693883892149,0.14356304,25630.0,25629.0,1.06781097]
[1693883893178,0.14356304,25630.0,25629.0,0.79468297]
[1693883894317,0.14356304,25630.0,25628.0,0.468221]
[1693883894519,0.1200633,25629.0,25628.0,0.468221]
[1693883894723,0.1200633,25629.0,25628.0,1.014497]
[1693883894945,0.02887342,25630.0,25628.0,1.58718227]
[1693883895158,0.02887342,25630.0,25629.0,0.0853]
[1693883895365,0.02887342,25630.0,25629.0,0.90998387]
[1693883895596,0.02887342,25630.0,25629.0,0.91196387]
[1693883895794,0.02887342,25630.0,25629.0,0.91184387]
[1693883896005,0.02887342,25630.0,25629.0,0.90716387]
[1693883896215,0.02887342,25630.0,25629.0,0.90908387]
[1693883896426,0.02887342,25630.0,25629.0,0.90896387]
[1693883896621,0.02887342,25630.0,25629.0,1.10410387]
[1693883897040,0.02887342,25630.0,25629.0,1.10416387]
[1693883897247,0.02887342,25630.0,25629.0,1.10410387]
[1693883897450,0.02887342,25630.0,25629.0,1.10386387]
[1693883897656,0.02887342,25630.0,25629.0,1.10392387]
[1693883897861,0.02887342,25630.0,25629.0,1.10200387]
[1693883898048,0.02887342,25630.0,25629.0,1.10482387]
[1693883898238,0.02887342,25630.0,25629.0,1.10014387]
[1693883898445,0.02887342,25630.0,25629.0,1.10122387]
[1693883898644,0.02887342,25630.0,25629.0,1.10098387]
[1693883898804,0.02887342,25630.0,25629.0,1.10110387]
[1693883899004,0.02887342,25630.0,25629.0,0.90584387]
[1693883899224,0.02887342,25630.0,25629.0,0.90428387]
[1693883899433,0.02887342,25630.0,25629.0,0.90458387]
[1693883899601,0.02887342,25630.0,25629.0,0.90464387]
[1693883899802,0.02887342,25630.0,25629.0,0.90596387]
[1693883899998,0.02887342,25630.0,25629.0,0.90536387]
[1693883900206,0.02887342,25630.0,25629.0,0.90506387]
[1693883900403,0.02887342,25630.0,25629.0,0.90740387]
[1693883900620,0.02887342,25630.0,25629.0,0.90764387]
[1693883900827,0.02887342,25630.0,25629.0,0.90884387]
[1693883901091,0.02887342,25630.0,25629.0,0.90434387]
[1693883901297,0.02887342,25630.0,25629.0,0.90458387]
[1693883901520,0.02887342,25630.0,25629.0,0.90476387]
[1693883901734,0.02887342,25630.0,25629.0,0.90488387]
[1693883901955,0.02887342,25630.0,25629.0,0.90476387]
[1693883902127,0.02887342,25630.0,25629.0,0.90578387]
[1693883902336,0.02887342,25630.0,25629.0,0.90698387]
[1693883902537,0.02887342,25630.0,25629.0,0.91040387]
[1693883902737,0.02887342,25630.0,25629.0,0.91376387]
[1693883902934,0.02887342,25630.0,25629.0,0.91472387]
[1693883903400,0.02887342,25630.0,25629.0,0.91466387]
[1693883903616,0.02887342,25630.0,25629.0,0.91472387]
[1693883903835,0.02887342,25630.0,25629.0,0.91094387]
[1693883904011,0.02887342,25630.0,25629.0,0.91004387]
[1693883904207,0.02887342,25630.0,25629.0,0.90578387]
[1693883904412,0.02887342,25630.0,25629.0,0.90602387]
[1693883904619,0.02887342,25630.0,25629.0,0.90728387]
[1693883904821,0.02887342,25630.0,25629.0,0.90770387]
[1693883905036,0.02887342,25630.0,25629.0,0.90758387]
[1693883905237,0.02887342,25630.0,25629.0,0.90788387]
[1693883905460,0.02887342,25630.0,25629.0,1.10296387]
[1693883905610,0.02887342,25630.0,25629.0,1.10302387]
[1693883905940,0.02887342,25630.0,25629.0,1.10206387]
[1693883906152,0.02887342,25630.0,25629.0,1.10218387]
[1693883906323,0.02887342,25630.0,25629.0,1.10236387]
[1693883906513,0.02887342,25630.0,25629.0,1.10224387]
[1693883906713,0.02887342,25630.0,25629.0,1.10242387]
[1693883906913,0.02887342,25630.0,25629.0,1.10254387]
[1693883907115,0.16767761,25630.0,25629.0,1.10086387]
[1693883907344,0.16767761,25630.0,25629.0,1.10104387]
[1693883907661,0.16767761,25630.0,25629.0,1.10182387]
[1693883907867,0.16767761,25630.0,25629.0,1.10194387]
[1693883908067,0.16767761,25630.0,25629.0,1.10218387]
[1693883908287,0.16767761,25630.0,25629.0,1.10176387]
[1693883908500,0.15767761,25630.0,25629.0,1.10326387]
[1693883908707,0.15767761,25630.0,25629.0,1.10530387]
[1693883908929,0.16727828,25630.0,25629.0,1.10620387]
[1693883909113,0.16727828,25630.0,25629.0,1.10638387]
[1693883909335,0.16727828,25630.0,25629.0,1.11382387]
[1693883909542,0.16727828,25630.0,25629.0,1.38749187]
[1693883909747,0.16727828,25630.0,25629.0,1.38779187]
[1693883909951,0.16727828,25630.0,25629.0,1.38683187]
[1693883910156,0.16727828,25630.0,25629.0,1.38695187]
[1693883910368,0.16727828,25630.0,25629.0,1.38719187]
[1693883910582,0.16727828,25630.0,25629.0,1.38761187]
[1693883910796,0.16727828,25630.0,25629.0,1.38791187]
[1693883911007,0.16727828,25630.0,25629.0,1.38785187]
[1693883911206,0.16727828,25630.0,25629.0,1.38809187]
[1693883911424,0.16727828,25630.0,25629.0,1.38917187]
[1693883911629,0.16727828,25630.0,25629.0,1.38911187]
[1693883911746,0.16727828,25630.0,25629.0,1.38935187]
[1693883911948,0.16727828,25630.0,25629.0,1.38965187]
[1693883912263,0.16727828,25630.0,25629.0,1.39097187]
[1693883912473,0.16727828,25630.0,25629.0,1.39049187]
[1693883912830,0.16727828,25630.0,25629.0,1.40015187]
[1693883912831,0.02847409,25630.0,25629.0,1.40015187]
[1693883913041,0.02847409,25630.0,25629.0,1.78679714]
[1693883913270,0.02847409,25630.0,25629.0,1.81171714]
[1693883913484,0.02847409,25630.0,25629.0,1.80685714]
[1693883913687,0.02847409,25630.0,25629.0,1.80625714]
[1693883913891,0.17262134,25630.0,25629.0,1.79383714]
[1693883914097,0.17262134,25630.0,25629.0,0.94140387]
[1693883915802,0.17262134,25630.0,25629.0,1.01214387]
[1693883916002,0.17262134,25630.0,25629.0,0.94140387]
[1693883916615,0.17262134,25630.0,25629.0,1.00722387]
[1693883916826,0.17262134,25630.0,25629.0,1.01022387]
[1693883917065,0.17262134,25630.0,25629.0,1.01088387]
[1693883917271,0.17262134,25630.0,25629.0,1.01262387]
[1693883917480,0.17262134,25630.0,25629.0,1.01298387]
[1693883917688,0.17262134,25630.0,25629.0,1.01280387]
[1693883917881,0.17262134,25630.0,25629.0,1.01076387]
[1693883918082,0.17262134,25630.0,25629.0,1.01046387]
[1693883918307,0.17262134,25630.0,25629.0,0.66827587]
[1693883918529,0.17262134,25630.0,25629.0,0.39514787]
[1693883918664,0.17262134,25630.0,25629.0,0.19508]
[1693883920454,0.17262134,25630.0,25629.0,0.27506]
[1693883920693,0.17262134,25630.0,25629.0,0.26486]
[1693883920895,0.17262134,25630.0,25629.0,0.26636]
[1693883921100,0.17262134,25630.0,25629.0,0.26648]
[1693883921360,0.17262134,25630.0,25629.0,0.26492]
[1693883921597,0.17262134,25630.0,25629.0,0.3799028]
[1693883921843,0.17262134,25630.0,25629.0,0.3847028]
[1693883922044,0.17262134,25630.0,25629.0,0.1896828]
[1693883922199,0.17262134,25630.0,25629.0,0.1901028]
[1693883922406,0.17262134,25630.0,25629.0,0.1865028]
[1693883922663,0.17262134,25630.0,25629.0,0.1989828]
[1693883922882,0.17262134,25630.0,25629.0,0.2956228]
[1693883923044,0.17262134,25630.0,25629.0,0.2957428]
[1693883923410,0.17262134,25630.0,25629.0,0.4911828]
[1693883923591,0.17262134,25630.0,25629.0,0.4817028]
[1693883923802,0.17262134,25630.0,25629.0,0.4779228]
[1693883924012,0.15762134,25630.0,25629.0,0.4771428]
[1693883924222,0.17452529,25630.0,25629.0,0.4745028]
[1693883924430,0.17452529,25630.0,25629.0,0.4773228]
[1693883924660,0.17452529,25630.0,25629.0,0.4773828]
[1693883924861,0.17452529,25630.0,25629.0,0.4868028]
[1693883925068,0.17452529,25630.0,25629.0,0.4948428]
[1693883925285,0.17452529,25630.0,25629.0,0.4952628]
[1693883925689,0.17452529,25630.0,25629.0,0.4884228]
[1693883925892,0.17452529,25630.0,25629.0,0.4886628]
[1693883926098,0.17452529,25630.0,25629.0,0.4887228]
[1693883926296,0.17452529,25630.0,25629.0,0.4890828]
[1693883926525,0.17452529,25630.0,25629.0,0.4971228]
[1693883926678,0.17452529,25630.0,25629.0,0.4859028]
[1693883926886,0.17452529,25630.0,25629.0,0.4650828]
[1693883927082,0.17452529,25630.0,25629.0,0.3973428]
[1693883927260,0.17452529,25630.0,25629.0,0.4638228]
[1693883927458,0.17452529,25630.0,25629.0,0.3973428]
[1693883927866,0.17452529,25630.0,25629.0,0.4631628]
[1693883928067,0.17452529,25630.0,25629.0,0.4892028]
[1693883928267,0.17452529,25630.0,25629.0,0.4968228]
[1693883928494,0.17452529,25630.0,25629.0,0.4958028]
[1693883928666,0.17452529,25630.0,25629.0,0.4893228]
[1693883928969,0.17452529,25630.0,25629.0,0.4865628]
[1693883929192,0.95486029,25630.0,25629.0,0.1169628]
[1693883930343,0.17452529,25630.0,25629.0,0.1844628]
[1693883930490,0.17452529,25630.0,25629.0,0.1908828]
[1693883930834,0.17452529,25630.0,25629.0,0.1905828]
[1693883930987,0.17452529,25630.0,25629.0,0.1929828]
[1693883931194,0.17452529,25630.0,25629.0,0.1893828]
[1693883931394,0.17452529,25630.0,25629.0,0.1832028]
[1693883931605,0.17452529,25630.0,25629.0,0.1830828]
[1693883931779,0.17452529,25630.0,25629.0,0.1838628]
[1693883931986,0.17452529,25630.0,25629.0,0.1839828]
[1693883932184,0.17452529,25630.0,25629.0,0.1840428]
[1693883932492,0.17452529,25630.0,25629.0,0.1909428]
[1693883932652,0.17452529,25630.0,25629.0,0.1910628]
[1693883932991,0.17452529,25630.0,25629.0,0.1913628]
[1693883933211,0.17452529,25630.0,25629.0,0.1914828]
[1693883933407,0.17452529,25630.0,25629.0,0.1923228]
[1693883933614,0.17452529,25630.0,25629.0,0.1918428]
[1693883933810,0.17452529,25630.0,25629.0,0.1919028]
[1693883933946,0.17452529,25630.0,25629.0,0.1869828]
[1693883934156,0.17452529,25630.0,25629.0,0.1972428]
[1693883934362,0.17452529,25630.0,25629.0,0.1970028]
[1693883934576,0.17452529,25630.0,25629.0,0.1983228]
[1693883934774,0.17452529,25630.0,25629.0,0.1984428]
[1693883935000,0.17452529,25630.0,25629.0,0.5571708]
[1693883935210,0.17452529,25630.0,25629.0,0.3154228]
[1693883935410,0.17452529,25630.0,25629.0,0.3142828]
[1693883935653,0.17452529,25630.0,25629.0,0.3080428]
[1693883935893,0.17452529,25630.0,25629.0,0.3066028]
[1693883936094,0.17452529,25630.0,25629.0,0.3080428]
[1693883936304,0.17452529,25630.0,25629.0,0.3079828]
[1693883936507,0.17452529,25630.0,25629.0,0.3065428]
[1693883936727,0.17452529,25630.0,25629.0,0.3040828]
[1693883936934,0.95486029,25630.0,25629.0,0.1169628]
[1693883937141,1.95486029,25630.0,25628.0,0.10257278]
[1693883937358,1.95486029,25630.0,25628.0,0.10227278]
[1693883937565,1.59104804,25630.0,25628.0,0.10785278]
[1693883937766,2.46469991,25630.0,25628.0,0.03129278]
[1693883937975,2.63089991,25630.0,25625.0,0.61219218]
[1693883938185,1.12963663,25629.0,25625.0,0.28901298]
[1693883938387,2.361206,25628.0,25625.0,0.07398]
[1693883938617,2.38927538,25628.0,25625.0,0.07248]
[1693883938799,0.12161867,25627.0,25624.0,0.0894]
[1693883939005,0.12161867,25627.0,25624.0,0.08952]
[1693883939006,0.780457,25626.0,25624.0,0.08952]
[1693883939217,0.780457,25626.0,25624.0,0.09108]
[1693883939424,0.946657,25626.0,25625.0,0.0747]
[1693883939625,1.190757,25626.0,25625.0,0.0433191]
[1693883940104,1.190757,25626.0,25625.0,0.1310391]
[1693883940306,1.190757,25626.0,25625.0,0.1358991]
[1693883940540,0.4103,25626.0,25625.0,0.1382391]
[1693883940751,0.4103,25626.0,25625.0,0.1387191]
[1693883940950,0.4103,25626.0,25625.0,0.1376391]
[1693883941132,0.4103,25626.0,25625.0,0.1365591]
[1693883941456,0.4103,25626.0,25625.0,0.1421991]
[1693883941609,0.5265129,25626.0,25625.0,0.1423191]
[1693883941812,0.5265129,25626.0,25625.0,0.1422591]
[1693883942014,0.5265129,25626.0,25625.0,0.1427391]
[1693883942219,0.5265129,25626.0,25625.0,0.1456191]
[1693883942396,0.5265129,25626.0,25625.0,0.1475991]
[1693883942595,0.5265129,25626.0,25625.0,0.1477791]
[1693883942806,0.5265129,25626.0,25625.0,0.1467591]
[1693883943070,0.5265129,25626.0,25625.0,0.1469391]
[1693883943250,0.5265129,25626.0,25625.0,0.1441791]
[1693883943452,0.5265129,25626.0,25625.0,0.1438191]
[1693883943716,0.5215129,25626.0,25625.0,0.1439991]
[1693883943891,0.5215129,25626.0,25625.0,0.1418391]
[1693883944067,0.5215129,25626.0,25625.0,0.1417791]
[1693883944225,1.3019699,25626.0,25625.0,0.1427991]
[1693883944427,1.3019699,25626.0,25625.0,0.1430391]
[1693883944858,1.3019699,25626.0,25625.0,0.1432791]
[1693883945065,1.3019699,25626.0,25625.0,0.1435191]
[1693883945262,1.3019699,25626.0,25625.0,0.1437591]
[1693883945465,0.1162129,25626.0,25625.0,0.2510791]
[1693883945835,0.1162129,25626.0,25625.0,0.2567791]
[1693883946039,0.1162129,25626.0,25625.0,0.2569591]
[1693883946283,0.1162129,25626.0,25625.0,0.2573791]
[1693883946461,0.1162129,25626.0,25625.0,0.2530591]
[1693883946659,0.1162129,25626.0,25625.0,0.2532991]
[1693883946856,0.1162129,25626.0,25625.0,0.2535391]
[1693883946994,0.1162129,25626.0,25625.0,0.2522191]
[1693883947195,0.1162129,25626.0,25625.0,0.2516791]
[1693883947401,0.1162129,25626.0,25625.0,0.2518591]
[1693883947823,0.1162129,25626.0,25625.0,0.4470291]
[1693883948032,1.035315,25628.0,25625.0,0.83373437]
[1693883948240,0.10821575,25630.0,25627.0,0.0853]
[1693883948448,0.10821575,25630.0,25629.0,0.0853]
[1693883948649,0.12821575,25630.0,25629.0,0.0853]
[1693883948874,0.1570887,25630.0,25629.0,0.20134]
[1693883949072,0.02,25630.0,25629.0,0.39648]
[1693883949269,0.02,25630.0,25629.0,0.39636]
[1693883949492,0.02,25630.0,25629.0,0.39612]
[1693883949774,0.02,25630.0,25629.0,0.3951]
[1693883949970,0.02,25630.0,25629.0,0.44912547]
[1693883950175,0.02,25630.0,25629.0,0.44882547]
[1693883950376,0.02,25630.0,25629.0,0.44936547]
[1693883950587,0.12894216,25630.0,25629.0,0.44900547]
[1693883950787,0.12894216,25630.0,25629.0,0.44918547]
[1693883950987,0.12894216,25630.0,25629.0,0.44942547]
[1693883951195,0.13698358,25630.0,25629.0,0.45614547]
[1693883951411,0.13698358,25630.0,25629.0,0.45890547]
[1693883951621,0.13698358,25630.0,25629.0,0.45692547]
[1693883951844,0.13698358,25630.0,25629.0,0.45716547]
[1693883952057,0.02804142,25630.0,25629.0,1.94234833]
[1693883952260,0.02804142,25630.0,25629.0,1.94054833]
[1693883952461,0.02804142,25630.0,25629.0,1.92218833]
[1693883952706,0.13586775,25631.0,25629.0,1.92242833]
[1693883952966,0.13586775,25631.0,25630.0,0.53526437]
[1693883953240,0.13586775,25631.0,25630.0,0.93510137]
[1693883953460,0.13586775,25631.0,25630.0,0.93534137]
[1693883953874,0.13586775,25631.0,25630.0,0.93894137]
[1693883954087,0.13586775,25631.0,25630.0,0.93792137]
[1693883954297,0.13586775,25631.0,25630.0,0.93798137]
[1693883954507,0.13586775,25631.0,25630.0,0.93942137]
[1693883954700,0.13586775,25631.0,25630.0,1.07706137]
[1693883954907,0.13586775,25631.0,25630.0,1.07742137]
[1693883955138,0.13586775,25631.0,25630.0,1.07670137]
[1693883955323,0.13586775,25631.0,25630.0,1.07166137]
[1693883955523,0.13586775,25631.0,25630.0,1.07202137]
[1693883955700,0.13586775,25631.0,25630.0,0.93894137]
[1693883955916,0.13586775,25631.0,25630.0,1.07406137]
[1693883956109,0.13586775,25631.0,25630.0,1.07454137]
[1693883956323,0.13586775,25631.0,25630.0,1.35521837]
[1693883956743,0.13586775,25631.0,25630.0,1.34981837]
[1693883956877,0.13586775,25631.0,25630.0,1.34885837]
[1693883957098,0.13586775,25631.0,25630.0,1.35521837]
[1693883957317,0.13586775,25631.0,25630.0,1.35653837]
[1693883957769,0.1565,25632.0,25630.0,1.35797837]
[1693883958100,0.30251689,25632.0,25631.0,0.251138]
[1693883958241,0.30251689,25632.0,25631.0,0.75928327]
[1693883958874,0.30251689,25632.0,25631.0,0.75922327]
[1693883959040,0.30251689,25632.0,25631.0,0.74212327]
[1693883959246,0.30251689,25632.0,25631.0,0.74206327]
[1693883959563,1.30251689,25632.0,25631.0,0.74224327]
[1693883959783,0.30251689,25632.0,25631.0,0.16742547]
[1693883959989,0.30251689,25632.0,25631.0,0.16724547]
[1693883960307,0.30251689,25632.0,25631.0,0.16622547]
[1693883960507,0.30251689,25632.0,25631.0,0.16034547]
[1693883960714,0.30251689,25632.0,25631.0,0.16094547]
[1693883960866,0.30251689,25632.0,25631.0,0.16316547]
[1693883961062,0.30251689,25632.0,25631.0,0.17114547]
[1693883961271,0.30251689,25632.0,25631.0,0.17090547]
[1693883961481,0.30251689,25632.0,25631.0,0.17084547]
[1693883961674,0.30251689,25632.0,25631.0,0.17078547]
[1693883961934,0.30251689,25632.0,25631.0,0.26130547]
[1693883962239,0.30251689,25632.0,25631.0,0.25830547]
[1693883962459,0.30251689,25632.0,25630.0,0.07926]
[1693883962460,2.816764,25632.0,25630.0,0.07926]
[1693883962685,2.816764,25632.0,25629.0,0.227116]
[1693883962880,2.816764,25632.0,25627.0,0.30586]
[1693883963085,1.560682,25630.0,25628.0,0.0936]
[1693883963259,1.560682,25630.0,25628.0,0.09126]
[1693883963435,1.560682,25630.0,25628.0,0.09144]
[1693883963638,1.560682,25630.0,25628.0,0.09126]
[1693883963839,1.724282,25630.0,25628.0,0.0915]
[1693883964059,2.589923,25630.0,25627.0,0.07032]
[1693883964246,2.609923,25630.0,25626.0,0.27455]
[1693883964449,2.63425963,25630.0,25627.0,0.0756]
[1693883964650,2.609923,25630.0,25627.0,0.07494]
[1693883965150,2.609923,25630.0,25627.0,0.07554]
[1693883965378,0.13499933,25629.0,25627.0,0.0759]
[1693883965724,1.560792,25628.0,25627.0,0.07668]
[1693883965878,1.560792,25628.0,25627.0,0.0768]
[1693883966219,1.59008743,25628.0,25626.0,0.09408]
[1693883966444,1.99938743,25628.0,25626.0,0.0945]
[1693883967083,2.80412006,25628.0,25624.0,0.0732]
[1693883967288,2.341371,25626.0,25624.0,0.06816]
[1693883967490,2.341371,25626.0,25624.0,0.07842]
[1693883967718,2.341371,25626.0,25621.0,0.93163207]
[1693883967719,2.341371,25626.0,25623.0,0.09294]
[1693883967913,0.256,25625.0,25624.0,0.02545781]
[1693883968113,0.4061,25625.0,25624.0,0.02545781]
[1693883968289,0.1501,25625.0,25624.0,0.40015881]
[1693883968492,0.276,25627.0,25624.0,0.93335981]
[1693883968692,0.276,25627.0,25625.0,0.0853]
[1693883969149,0.276,25627.0,25626.0,0.10482]
[1693883969349,0.38318874,25627.0,25626.0,0.10458]
[1693883969595,0.38318874,25627.0,25626.0,0.10662]
[1693883969808,0.2389891,25630.0,25626.0,1.47600527]
[1693883970018,0.4040323,25630.0,25627.0,0.0853]
[1693883970226,0.4040323,25630.0,25627.0,0.78624711]
[1693883970433,0.14458421,25629.0,25627.0,0.644882]
[1693883970632,0.14458421,25629.0,25628.0,0.11052]
[1693883970633,0.15475154,25629.0,25628.0,0.11052]
[1693883970836,0.15475154,25629.0,25628.0,0.10248]
[1693883971077,0.02,25629.0,25628.0,0.10188]
[1693883971289,0.15117649,25631.0,25628.0,1.67003927]
[1693883971494,0.15117649,25631.0,25630.0,0.0853]
[1693883971731,0.15117649,25631.0,25630.0,1.03817927]
[1693883972155,0.15117649,25631.0,25630.0,1.16867927]
[1693883972334,0.15117649,25631.0,25630.0,1.03542227]
[1693883972541,0.15117649,25631.0,25630.0,0.62652527]
[1693883972742,0.15117649,25631.0,25630.0,0.76002527]
[1693883972965,0.15117649,25631.0,25630.0,0.76014527]
[1693883973171,0.15117649,25631.0,25630.0,1.05654227]
[1693883973307,0.15117649,25631.0,25630.0,1.33157927]
[1693883973502,0.15117649,25631.0,25630.0,1.32821927]
[1693883973706,0.15117649,25631.0,25630.0,1.33253927]
[1693883974045,0.15117649,25631.0,25630.0,1.33229927]
[1693883974225,0.15117649,25631.0,25630.0,1.32917927]
[1693883974431,0.15117649,25631.0,25630.0,1.05510227]
[1693883974648,0.15117649,25631.0,25630.0,1.05462227]
[1693883974874,0.15117649,25631.0,25630.0,1.05354227]
[1693883975167,0.15117649,25631.0,25630.0,1.05306227]
[1693883975387,0.15117649,25631.0,25630.0,1.05042227]
[1693883975573,0.15117649,25631.0,25630.0,1.04850227]
[1693883975702,0.15117649,25631.0,25630.0,1.04814227]